Cogmind - Beta 13 X2 @@@ ROGUE MODE // 2024.01.22 @ 13:12:04 Player: Boris Result: Destroyed by as-06549 with Assembled F-torch Performance ------------- Evolutions (0) 0 Regions Visited (4) 800 Robots Destroyed (30) 150 Value Destroyed (792) 792 Prototype IDs (23) 460 Alien Tech Used (0) 0 Bonus (300) 300 TOTAL SCORE: 2502 Bonus ------- Aligned with FarCom 300 Cogmind --------- Core Integrity 0/250 Matter 174/300 Energy 82/100 System Corruption 0% Temperature Hot (252) Movement Core (400) Ox7 Location -9/Mines Parts ------- > --- POWER (1) -------- (None) > --- PROPULSION (2) --- (None) > --- UTILITY (2) ------ Large Storage Unit > --- WEAPON (2) ------- Medium Laser Light Assault Rifle > --- INVENTORY (15) --- Ion Engine High-capacity Matter Pod (200) Signal Interpreter Seismic Detector Seismic Detector Transport Network Coupler Hacking Suite EM Pulse Gun Light Assault Rifle Light Assault Rifle Peak State ------------ > --- POWER ------------ Ion Engine > --- PROPULSION ------- Light Treads Wheel > --- UTILITY ---------- Heat Sink Large Storage Unit > --- WEAPON ----------- Medium Laser Particle Gun > --- INVENTORY -------- Ion Engine High-capacity Matter Pod Signal Interpreter Seismic Detector Seismic Detector Transport Network Coupler Hacking Suite EM Pulse Gun Medium Laser Light Assault Rifle Light Assault Rifle Light Assault Rifle Grenade Launcher Mining Laser [Rating: 9] Favorites ----------- Power Ion Engine Engine Ion Engine Propulsion Light Treads Treads Light Treads Wheel Wheel Utility Heat Sink Device Heat Sink Storage Large Storage Unit Weapon Medium Laser Energy Gun Medium Laser Ballistic Gun Assault Rifle Launcher Grenade Launcher Special Weapon Mining Laser Build | -11 -10 -10 -10 -9 ------- Run | Yrd Mat Min Exi Min Slots Evolved . | . . . . . Power . | . . . . . Propulsion . | . . . . . Utility . | . . . . . Weapon . | . . . . . Parts Attached 32 | 5 15 5 . 7 Power 1 | . 1 . . . Engine 1 | . 1 . . . Core . | . . . . . Reactor . | . . . . . Propulsion 5 | 2 2 1 . . Treads 4 | 2 2 . . . Leg . | . . . . . Wheel 1 | . . 1 . . Hover . | . . . . . Flight . | . . . . . Utility 6 | 1 5 . . . Device 3 | . 3 . . . Storage 3 | 1 2 . . . Processor . | . . . . . Hackware . | . . . . . Protection . | . . . . . Artifact . | . . . . . Weapon 20 | 2 7 4 . 7 Energy Gun 11 | 1 5 2 . 3 Energy Cannon . | . . . . . Ballistic Gun 2 | 1 . . . 1 Ballistic Cannon . | . . . . . Launcher 4 | . . 2 . 2 Special Weapon 3 | . 2 . . 1 Impact Weapon . | . . . . . Slashing Weapon . | . . . . . Piercing Weapon . | . . . . . Special Melee Weapon . | . . . . . Unidentified Prototypes . | . . . . . Parts Lost 11 | . 2 1 . 8 Power 1 | . . . . 1 Propulsion 4 | . 1 1 . 2 Utility 1 | . . . . 1 Weapon 5 | . 1 . . 4 Highest Loss Streak 8 | . 1 1 . 8 To Critical Strikes 1 | . . . . 1 Average Slot Usage (%) 92 | . 89 98 100 71 Engine 11 | . 10 14 14 8 Treads 23 | . 27 18 14 10 Wheel 4 | . . 7 14 8 Device 10 | . 7 14 14 8 Storage 14 | . 14 14 14 14 Energy Gun 22 | . 22 22 28 14 Ballistic Gun 2 | . 3 . . 4 Launcher 1 | . . 5 . . Special Weapon 1 | . 1 . . 4 Naked Turns . | . . . . . Heaviest Build 31 | 8 30 31 30 31 Greatest Support 40 | 40 40 40 10 10 Greatest Overweight (x) 3 | . . 3 2 3 Average Overweight (x) . | . . 1 2 2 Largest Inventory Capacity 15 | 8 15 15 15 15 Average Capacity 12 | 6 10 15 15 15 Most Carried 14 | 3 11 14 14 14 Average Carried 10 | 1 8 12 14 12 Final Capacity 15 | 8 15 15 15 15 Final Carried 14 | 3 10 14 14 10 Class Distribution -------------------- 65% | Mutant 34% | Scavenger-Mutant Dominant Class ---------------- Mutant | -10/Materials Scavenger-Mutant | -10/Mines Scavenger-Mutant | -10/Exiles Mutant | -9/Mines Resources | -11 -10 -10 -10 -9 ----------- Run | Yrd Mat Min Exi Min Matter Collected 985 | 211 617 157 . . Remotely . | . . . . . Salvage Created 875 | 12 617 197 . 49 Parts 60 | 3 38 19 . . Haulers Intercepted 2 | . 2 . . . Recyclers Shooed 1 | . 1 . . . Parts Field Recycled . | . . . . . Retrieved Matter . | . . . . . Parts Self-Destructed . | . . . . . Prevented . | . . . . . Kills | -11 -10 -10 -10 -9 ------- Run | Yrd Mat Min Exi Min Combat Hostiles Destroyed 28 | . 10 12 . 6 Guns 11 | . 10 . . 1 AOE 16 | . . 11 . 5 Classes Destroyed 8 | 1 5 1 . 1 Builder 2 | . 1 1 . . Tunneler 2 | 1 . 1 . . Hauler 2 | . 2 . . . Operator 1 | . 1 . . . Watcher 1 | . 1 . . . Swarmer 6 | . . 6 . . Grunt 16 | . 10 6 . . Assembled 6 | . . . . 6 Best Kill Streak 6 | 1 3 3 . 6 Combat Bots Only 6 | . 3 3 . 6 Max Kills in Single Turn 5 | 1 1 3 . 5 Gunslinging . | . . . . . Exploded 5 | . . 3 . 5 Melee . | . . . . . Uniques/NPCs Destroyed . | . . . . . Combat | -11 -10 -10 -10 -9 -------- Run | Yrd Mat Min Exi Min Hostile Shots Fired 146 | . 76 26 . 44 Missed 31 | . 14 12 . 5 Damage Taken 1611 | . 772 191 . 648 Core 250 | . 78 . . 172 Absorbed by Shields . | . . . . . Regen/Repaired (Parts) 176 | . 176 . . . Core Remaining (%) 100 | 100 . . . . Volleys Fired 110 | 2 65 25 3 15 Largest 2 | 2 2 2 2 2 Hottest 100 | 60 100 100 100 100 Shots Fired 196 | 4 127 33 6 26 Gun 172 | 4 124 16 6 22 Cannon . | . . . . . Launcher 18 | . . 17 . 1 Special 6 | . 3 . . 3 Kinetic 44 | 2 34 . . 8 Thermal 134 | 2 93 16 6 17 Explosive 18 | . . 17 . 1 Electromagnetic . | . . . . . Robot Hit Streak 13 | 3 13 7 . 11 Robot Miss Streak 8 | 1 8 3 . 2 Penetration Max . | . . . . . Secondary Targets 1 | . 1 . . . Max Gunslinging Chain 1 | . 1 . . . Shots Hit Robots 121 | 3 83 19 . 16 Core Hits 62 | 1 30 19 . 12 Critical Kills 1 | . 1 . . . Critical Parts Destroyed . | . . . . . Critical Strikes 8 | . 7 1 . . Burn 7 | . 6 1 . . Destroy 1 | . 1 . . . Melee Attacks . | . . . . . Impact . | . . . . . Slashing . | . . . . . Piercing . | . . . . . Sneak Attacks . | . . . . . Combat Hostiles . | . . . . . Follow-up Attacks . | . . . . . Damage Inflicted 2377 | 35 1033 907 . 402 Guns 1369 | 35 1022 137 . 175 Cannons . | . . . . . Explosions 997 | . . 770 . 227 Melee . | . . . . . Ramming 11 | . 11 . . . Kinetic 352 | 25 301 . . 26 Thermal 1095 | 10 721 215 . 149 Explosive 919 | . . 692 . 227 Electromagnetic . | . . . . . Impact . | . . . . . Slashing . | . . . . . Piercing . | . . . . . Highest Corruption . | . . . . . Average Corruption . | . . . . . Corruption Purged . | . . . . . Corruption Blocked . | . . . . . Overload Shots . | . . . . . Overflow Damage 48 | . . 30 . 18 Projectiles . | . . . . . Explosions 48 | . . 30 . 18 Melee . | . . . . . Knockbacks . | . . . . . Impact . | . . . . . Kinetic . | . . . . . Secondary . | . . . . . Self-Inflicted Damage 64 | . . 39 . 25 Shots 2 | . . 1 . 1 Rammed 1 | . 1 . . . Targets Rammed 1 | . 1 . . . Kicked . | . . . . . Crushed . | . . . . . Highest Temperature 247 | . 183 63 27 247 Average Temperature 48 | . 38 24 15 126 Received Heat Transfer 701 | . 429 63 . 209 Siege Activations . | . . . . . Robots Corrupted . | . . . . . Combat Hostiles . | . . . . . Parts Fried . | . . . . . Impact Corruptions . | . . . . . Robots Melted 1 | . . 1 . . Combat Hostiles 1 | . . 1 . . Parts Melted 4 | . 3 1 . . Heat Transferred 3498 | 25 2448 581 . 444 Parts Sabotaged . | . . . . . Parts Stolen . | . . . . . Parts Stripped . | . . . . . Power Chain Reactions . | . . . . . Missiles Intercepted . | . . . . . Alert | -11 -10 -10 -10 -9 ------- Run | Yrd Mat Min Exi Min Peak Influence 382 | 5 133 382 . 17 Initial 22 | . 3 22 . . Average 106 | 1 49 240 . 6 Maximum Alert Level 1 | . . 1 . . Low Security (%) 82 | 100 100 43 . 100 Level 1 17 | . . 56 . . Level 2 . | . . . . . Level 3 . | . . . . . Level 4 . | . . . . . Level 5 . | . . . . . High Security . | . . . . . Max Security . | . . . . . Squads Dispatched 3 | . 3 . . . Investigation 2 | . 2 . . . Extermination . | . . . . . Reinforcement 1 | . 1 . . . Assault . | . . . . . Garrison . | . . . . . Intercept . | . . . . . Searches Triggered . | . . . . . Construction Impeded . | . . . . . Haulers Reinforced . | . . . . . Active Scanning Responses . | . . . . . Cargo Convoy Interrupts . | . . . . . Stealth | -11 -10 -10 -10 -9 --------- Run | Yrd Mat Min Exi Min Distress Signals 4 | . 3 . . 1 Communications Jammed . | . . . . . Distress Signals . | . . . . . Times Spotted 51 | . 26 11 . 14 Peak Tracking Total 10 | . 5 3 9 10 Tactical Retreats . | . . . . . Traps | -11 -10 -10 -10 -9 ------- Run | Yrd Mat Min Exi Min Traps Triggered 1 | . 1 . . . Indirectly . | . . . . . Trap Hack Attempts . | . . . . . Triggered . | . . . . . Disarmed . | . . . . . Reprogrammed . | . . . . . Reused . | . . . . . Traps Extracted . | . . . . . Installed . | . . . . . Triggered . | . . . . . Machines | -11 -10 -10 -10 -9 ---------- Run | Yrd Mat Min Exi Min Machines Disabled 6 | . . 5 1 . Max in Single Turn 4 | . . 4 1 . Machines Repaired . | . . . . . Machines Dismantled . | . . . . . Machines Sabotaged . | . . . . . Overloaded Fab Kills . | . . . . . Hacking | -11 -10 -10 -10 -9 --------- Run | Yrd Mat Min Exi Min Machines Accessed 12 | . 10 . 2 . Terminals 7 | . 7 . . . Fabricators . | . . . . . Repair Stations 1 | . 1 . . . Recycling Units 2 | . 2 . . . Scanalyzers . | . . . . . Garrison Access . | . . . . . Total Hacks 30 | . 28 . 2 . Successful 15 | . 13 . 2 . Failed 15 | . 15 . . . Catastrophic 1 | . 1 . . . Database Lockouts . | . . . . . Manual 14 | . 13 . 1 . Terminals 20 | . 20 . . . Fabricators . | . . . . . Repair Stations 6 | . 6 . . . Recycling Units 2 | . 2 . . . Scanalyzers . | . . . . . Garrison Access . | . . . . . Terminal Hacks 9 | . 7 . 2 . Record 1 | . . . 1 . Part Schematic 2 | . 2 . . . Robot Analysis 2 | . 2 . . . Alert Level 1 | . 1 . . . Locate Traps 1 | . 1 . . . Hauler Manifests 1 | . 1 . . . Derelict Proto ID Bank 1 | . . . 1 . Fabricator Hacks . | . . . . . Repair Station Hacks 4 | . 4 . . . Scan Component 2 | . 2 . . . Repair 2 | . 2 . . . Recycling Unit Hacks 1 | . 1 . . . Retrieve Components 1 | . 1 . . . Scanalyzer . | . . . . . Garrison Access Hacks . | . . . . . Unauthorized Hacks 1 | . 1 . . . Terminals . | . . . . . Fabricators . | . . . . . Repair Stations . | . . . . . Recycling Units 1 | . 1 . . . Tunnel 1 | . 1 . . . Scanalyzers . | . . . . . Garrison Access . | . . . . . Data Cores Recovered . | . . . . . Used . | . . . . . Hacking Detections 8 | . 8 . . . Full Trace Events 1 | . 1 . . . Feedback Events . | . . . . . Feedback Blocked . | . . . . . Robot Schematics Acquired . | . . . . . Robots Built . | . . . . . Authchips . | . . . . . Time . | . . . . . Total Robot Build Rating . | . . . . . Part Schematics Acquired 2 | . 2 . . . Parts Built . | . . . . . Authchips . | . . . . . Time . | . . . . . Total Part Build Rating . | . . . . . Parts Repaired 2 | . 2 . . . Time 52 | . 52 . . . Parts Recycled . | . . . . . Recycled Matter . | . . . . . Retrieved Matter . | . . . . . Retrieved Components 10 | . 10 . . . Parts Scanalyzed . | . . . . . Part Schematics Acquired . | . . . . . Parts Damaged . | . . . . . Bothacking | -11 -10 -10 -10 -9 ------------ Run | Yrd Mat Min Exi Min Used RIF Installer . | . . . . . Robots Hacked . | . . . . . Non-combat . | . . . . . Combat . | . . . . . Robot Hacks Applied . | . . . . . Relay Couplers Released . | . . . . . Fabnet Peak Effective % . | . . . . . Robots Rewired . | . . . . . Allies Hacked . | . . . . . Hacks Repelled . | . . . . . Allies | -11 -10 -10 -10 -9 -------- Run | Yrd Mat Min Exi Min Total Allies . | . . . . . Largest Group . | . . . . . Highest-Rated Group . | . . . . . Highest-Rated Ally . | . . . . . Total Orders . | . . . . . Ally Attacks . | . . . . . Total Damage . | . . . . . Kills . | . . . . . Allies Corrupted . | . . . . . Allies Melted . | . . . . . Intel | -11 -10 -10 -10 -9 ------- Run | Yrd Mat Min Exi Min Robot Analysis Total 2 | . 2 . . . Derelict Logs Recovered 1 | . . 1 . . Drone Launches . | . . . . . Drone Recoveries . | . . . . . Exploration | -11 -10 -10 -10 -9 ------------- Run | Yrd Mat Min Exi Min Turns Passed 2701 | 74 1510 746 303 68 Spaces Moved 1559 | 39 725 515 266 14 Core 4 | 4 . . . . Treads 922 | 35 725 162 . . Legs . | . . . . . Wheels 633 | . . 353 266 14 Hover . | . . . . . Flight . | . . . . . Fastest Speed 50 | 50 160 110 110 110 Average Speed 140 | 148 160 129 110 112 Slowest Speed 240 | 160 160 240 110 125 Overloaded Moves . | . . . . . Propulsion Burnouts . | . . . . . Robots Hopped . | . . . . . Cave-ins Triggered . | . . . . . Exploration Rate (%) 53 | 4 98 95 60 10 Regions Visited 4 Branch Regions 3 Pre-discovered Areas 3 | . 1 1 1 . Known Exits Taken . | . . . . . Unknown Exits Taken 4 | 1 1 1 1 . Scrap Searched 1 | . . 1 . . Spaces Dug 31 | . 3 25 . 3 Terrain Destroyed 140 | . 3 128 . 9 Melee . | . . . . . Projectile 6 | . 3 . . 3 AOE 134 | . . 128 . 6 Terrain Rammed . | . . . . . Walls Destroyed . | . . . . . Machines Disabled . | . . . . . Actions | -11 -10 -10 -10 -9 --------- Run | Yrd Mat Min Exi Min Total 1857 | 49 941 561 270 36 Wait 127 | 1 111 13 2 . Move 1555 | 38 724 514 265 14 Hop . | . . . . . Pick Up 23 | 3 16 4 . . Fast Attach 9 | 5 3 1 . . Attach 6 | . 2 . . 4 Detach . | . . . . . Swap 17 | . 10 4 . 3 Drop 9 | . 9 . . . Fire 110 | 2 65 25 3 15 Melee . | . . . . . Ram . | . . . . . Kick . | . . . . . Crush 1 | . 1 . . . Escape Stasis . | . . . . . Rewire . | . . . . . Trap . | . . . . . Miscellaneous . | . . . . . Route ------- -11/Scrapyard -10/Materials (discovered 4 exits: [*Mat x3] / [*Min]) -10/Mines (discovered 3 exits: [*Mat x2] / *Exi) -10/Exiles -9/Mines History --------- Turn | Location | Event 14 | -11/Scrapyard | Discovered new exit (range 15) 75 | -11/Scrapyard | Entered Materials 300 | -10/Materials | Build established: Mutant 574 | -10/Materials | Discovered new exit (range 7) 695 | -10/Materials | Discovered new exit (range 16) 987 | -10/Materials | Discovered new exit (range 16) 1349 | -10/Materials | Discovered new exit (range 15) 1529 | -10/Materials | Repaired Lgt. Treads 1557 | -10/Materials | Repaired Med. Laser 1585 | -10/Materials | Entered Mines 1799 | -10/Mines | Discovered new exit (range 5) 1970 | -10/Mines | Learned location of Storage (-8) 2134 | -10/Mines | Discovered new exit (range 15) 2209 | -10/Mines | Build established: Scavenger-Mutant 2262 | -10/Mines | Learned Materials terminal intel 2327 | -10/Mines | Deemed a non-threat by the Exiles lab entrance 2327 | -10/Mines | Discovered new exit (range 5) 2331 | -10/Mines | Entered Exiles 2359 | -10/Exiles | Met 8R-AWN 2377 | -10/Exiles | Met EX-HEX 2419 | -10/Exiles | Met EX-DEC 2425 | -10/Exiles | Learned location of Zion (-6) 2478 | -10/Exiles | Met EX-BIN 2493 | -10/Exiles | Aligned with FarCom system 2494 | -10/Exiles | Given EX-Vault access code 2520 | -10/Exiles | Opened EX-Vault 2545 | -10/Exiles | Warned to stay clear of 0b10 Research branches 2604 | -10/Exiles | Attacked by the Exiles 2625 | -10/Exiles | Discovered new exit (range 10) 2634 | -10/Exiles | Entered Mines 2635 | -9/Mines | Assembled infested the area 2640 | -9/Mines | Assisted by a Guerilla fighting off Assembled 2683 | -9/Mines | Core integrity fell below 50% 2697 | -9/Mines | Core integrity fell below 20% 2702 | -9/Mines | Destroyed by as-06549 with Assembled F-torch Last Messages --------------- 02645_ G-34 Mercenary destroyed. 02647_ G-47 Trooper knocked back. 02647_ G-47 Trooper destroyed. 02661_ Mining Laser destroyed. 02665_ Particle Gun destroyed. 02665_ as-91774 destroyed. 02665_ as-64912 destroyed. 02665_ as-21135 destroyed. 02665_ Grenade Launcher destroyed. 02665_ Destroyed Grenade Launcher. 02665_ as-99143 destroyed. 02671_ Heat Sink destroyed. 02671_ Ion Engine destroyed. 02672_ Wheel destroyed. 02678_ Destroyed Asb. Hover Unit. 02678_ as-77989 destroyed. 02678_ Med. Laser destroyed. 02688_ Critical hit (Destroy). 02688_ Lgt. Treads destroyed. 02697_ The unstable cave ceiling collapses. Map ----- +----------------------------------------------------+ | ?????????????????????????????????????????????????? | | ?????????????????????????????????????????????????? | | ?????????????????????????????????????????????????? | | ?????????????????????????????????????????????????? | | ?????????????????????????????????????????????????? | | ?????????????????????????????????????????????????? | | ?????????????????????????????????????????????????? | | ?????????????????????????????????????????????????? | | ?????????????????????????????????????????????????? | | ?????????????????????????????????????????????????? | | ????????##???????????????????????????????????????? | | ??????# #??????????????????????????????????????? | | ?????? #?????????????????????????????????????? | | ?????# #????????????????????????????????????? | | ??????# #???????????????????????????????????? | | ???????# % #??????????????????????????????????? | | ????????# #?????????????????????????????????? | | ????????# *%* ###?????????????????##???????????? | | ?????????# =% #####??????????? #???????????? | | ??????????? ![ ??????????? #???????????? | | ?????????????*% ??????????? ?????????????? | | ??????????????# ##????????? ???????????????? | | ???????????????# #####???? ?? #?????????????? | | ???????????????## %# #### " #??????????????? | | ????????????????# %#a a #??????????????? | | ????????????????# %% #@### #??????????????? | | ????????????????# #%#??????????????????????? | | ????????????????## #a#### ???????????? | | ?????????????????# ???????????? | | ?????????????????## #??????????????? | | ??????????????????## #############??????????????? | | ???????????????????####??????????????????????????? | | ?????????????????????????????????????????????????? | | ?????????????????????????????????????????????????? | | | | | | | | | | | | | | | | | | | | | | | | | | | | | | | | | +----------------------------------------------------+ Best States ------------- Heat Dissipation 35 Energy Generation 10 Energy Capacity 250 Matter Stores 300 Matter Capacity 300 Sight Range 16 Terrain Scan Density 10 Evasion (%) 40 Recoil Reduction 2 Item Schematics ----------------- Hcp. Storage Unit | -10/Materials | Hacked Transport Network Coupler | -10/Materials | Hacked Robot Schematics ------------------ None Fabricated ------------ Nothing Alien Tech Used ----------------- None Achievements -------------- None Challenges ------------ None Game ------ Seed MediumHardlightTearclaws Manual? 0 Play Time 00:18:52 Cumulative 458.1 hours Start 2024.01.22 @ 12:53:11 End 2024.01.22 @ 13:12:04 Sessions 1 Manual Loads 0 Difficulty Rogue Special Mode None Game No. 163 Rogue 148 Adventurer 15 Explorer 0 Win Type - Total 30 Types 8/3/8/2/2/0/4/2/1 Lore% 91 Gallery% 93 Achievement% 83 Wizard Run 0 Options --------- ASCII 0 Keyboard 0 Movement Numpad Keybinds 0 Fullscreen 1 Font 18/SmallcapsGlow Map View 76x50 Zoom Use 0% Tactical HUD 1 Map Filters NONE Filters NONE Steam 1 RUN: 06962413-bed4-4863-b431-8074ddcd7584